bitfinex-derivatives/quotes_ETHF0:USTF0_20250421
["timestamp","ask_amount","ask_price","bid_price","bid_amount"]
[1745195705652,1.23465,1620.2,1619.7,7.38009]
[1745195705847,6.0784,1620.4,1619.7,6.1451]
[1745195706150,1.23468,1620.2,1619.7,6.1451]
[1745195706652,3.2078,1620.3,1619.7,2.9373]
[1745195706953,1.23474,1620.1,1619.7,2.9373]
[1745195707151,2.8706,1620.2,1619.7,2.9373]
[1745195707449,1.23444,1620.5,1619.7,6.1451]
[1745195707753,3.2078,1620.2,1619.8,1.23492]
[1745195707950,3.2078,1620.4,1620.0,1.23476]
[1745195708250,2.8706,1620.5,1620.1,3.0215]
[1745195708650,2.8706,1620.5,1620.2,40.8]
[1745195708853,2.8706,1620.5,1620.3,3.0215]
[1745195709156,3.2078,1620.6,1620.3,3.0215]
[1745195710248,3.2078,1620.4,1620.2,40.8]
[1745195710454,3.2078,1620.4,1620.2,43.8215]
[1745195710659,3.2078,1620.4,1620.2,40.8]
[1745195710955,2.9507,1620.3,1620.2,40.8]
[1745195713156,7.9507,1620.3,1620.2,40.8]
[1745195713456,2.9507,1620.3,1620.2,40.8]
[1745195714258,7.9507,1620.3,1619.2,3.2078]
[1745195714459,3.2078,1619.8,1619.5,3.1479]
[1745195714756,3.2078,1620.0,1619.7,40.8]
[1745195715159,3.2078,1620.1,1619.8,3.1479]
[1745195715364,3.0451,1620.0,1619.8,3.1479]
[1745195716057,3.0451,1620.0,1619.7,40.8]
[1745195716253,4.27992,1620.0,1619.7,40.8]
[1745195716460,4.2799,1620.0,1619.7,40.8]
[1745195716759,3.2078,1619.9,1619.7,40.8]
[1745195717060,6.2529,1619.9,1619.7,40.8]
[1745195717460,7.48778,1619.9,1619.7,40.8]
[1745195718463,7.48783,1619.9,1619.7,40.8]
[1745195718960,1.23494,1619.8,1619.7,40.8]
[1745195719163,4.26394,1619.8,1619.7,40.8]
[1745195719466,9.26394,1619.8,1619.7,40.8]
[1745195719658,9.26394,1619.8,1618.9,3.2078]
[1745195719659,3.0879,1619.6,1618.9,3.2078]
[1745195719860,1.23541,1619.2,1618.9,3.0288]
[1745195720058,3.2078,1619.3,1618.9,3.0288]
[1745195720257,3.029,1619.5,1619.1,1.23547]
[1745195720459,1.23503,1619.7,1619.2,3.1195]
[1745195720763,3.2078,1619.8,1619.2,43.9195]
[1745195720960,1.23511,1619.6,1619.2,43.9195]
[1745195721161,4.16485,1619.7,1619.2,43.9195]
[1745195721563,3.2078,1619.6,1619.2,43.9195]
[1745195721760,7.37274,1619.6,1619.2,43.9195]
[1745195721958,6.1376,1619.6,1619.2,43.9195]
[1745195722358,7.3727,1619.6,1619.2,43.9195]
[1745195722564,2.9298,1619.6,1619.2,43.9195]
[1745195722752,4.1649,1619.6,1619.2,43.9195]
[1745195722958,1.23517,1619.5,1619.2,43.9195]
[1745195723162,3.2078,1619.8,1619.2,47.1273]
[1745195723364,1.23508,1619.7,1619.2,47.1273]
[1745195723660,1.23506,1619.7,1619.2,47.1273]
[1745195723864,1.23509,1619.6,1619.2,47.1273]
[1745195724160,3.0173,1619.7,1619.2,47.1273]
[1745195724661,1.23511,1619.6,1619.2,47.1273]
[1745195724956,4.25234,1619.7,1619.2,48.36269]
[1745195725162,1.23512,1619.6,1619.2,47.1273]
[1745195725364,3.2078,1619.6,1619.2,6.3273]
[1745195725564,3.2078,1619.6,1618.8,5.884]
[1745195725565,1.23548,1619.1,1618.8,5.884]
[1745195725857,3.2078,1618.9,1618.6,6.2145]
[1745195726057,1.2357,1618.8,1618.7,3.0872]
[1745195726251,1.2357,1618.8,1617.8,100.058]
[1745195726252,3.08926,1618.8,1617.9,0.78843034]
[1745195726459,3.2078,1618.4,1618.0,40.8]
[1745195726655,1.23609,1618.3,1618.1,3.1513]
[1745195726852,3.2078,1618.4,1618.0,40.8]
[1745195727061,2.9546,1618.3,1618.0,40.8]
[1745195727454,2.9546,1618.3,1618.1,3.1513]
[1745195728254,4.19069,1618.3,1618.1,3.1513]
[1745195728564,3.2078,1618.2,1618.0,40.8]
[1745195728753,6.1624,1618.2,1618.0,40.8]
[1745195728960,11.1624,1618.2,1618.0,40.8]
[1745195729159,1.23624,1618.1,1618.0,40.8]
[1745195729362,4.42924,1618.1,1618.0,40.8]
[1745195729564,9.42924,1618.1,1618.0,40.8]
[1745195729960,4.42924,1618.1,1618.0,40.8]
[1745195730260,3.193,1618.1,1618.0,40.8]
[1745195730565,4.42924,1618.1,1618.0,40.8]
[1745195732266,9.42924,1618.1,1618.0,40.8]
[1745195732465,12.49794,1618.1,1618.0,40.8]
[1745195732859,19.38394,1618.1,1618.0,40.8]
[1745195735862,1.23677,1617.4,1617.3,3.1699]
[1745195736164,4.44457,1617.4,1617.3,3.16290204]
[1745195736368,4.44457,1617.4,1617.3,43.96290204]
[1745195736566,3.2078,1617.4,1617.3,43.96290204]
[1745195736767,4.44457,1617.4,1617.3,43.96290204]
[1745195736971,3.2078,1617.4,1617.3,43.96290204]
[1745195737267,3.2078,1617.4,1617.3,40.8]
[1745195737569,7.46437,1617.4,1617.3,40.8]
[1745195738067,6.2276,1617.4,1617.3,40.8]
[1745195738263,4.44457,1617.4,1617.3,40.8]
[1745195738660,7.61067,1617.4,1617.3,40.8]
[1745195738861,12.61067,1617.4,1617.3,40.8]
[1745195739569,1.23715,1616.9,1616.4,6.617]
[1745195739768,3.2078,1616.8,1616.5,3.0876]
[1745195739966,3.2078,1617.0,1616.5,3.0876]
[1745195740168,9.7831,1617.2,1616.5,9.32502]
[1745195740470,3.2078,1617.2,1616.6,40.8]
[1745195740662,3.2078,1617.2,1616.7,3.0876]
[1745195741063,3.2078,1617.2,1616.7,8.5053]
[1745195741270,3.2078,1617.4,1616.7,8.5053]
[1745195741568,3.2078,1617.1,1616.7,5.3516]
[1745195741870,1.23723,1616.8,1616.7,5.3516]
[1745195742262,1.23723,1616.8,1616.7,3.0876]
[1745195742668,1.23731,1616.7,1616.6,40.8]
[1745195742865,4.44511,1616.7,1616.6,40.8]
[1745195743173,9.44511,1616.7,1616.6,40.8]
[1745195743364,1.2378,1616.1,1615.7,6.1507]
[1745195743560,3.09357,1616.6,1615.7,6.1507]
[1745195743561,3.2078,1616.2,1615.8,2.9465]
[1745195743771,11.06352,1616.2,1616.1,40.8]
[1745195743971,3.2078,1616.2,1616.1,40.8]
[1745195744268,9.44549,1616.2,1616.1,40.8]
[1745195744766,8.2078,1616.2,1615.2,3.2078]
[1745195744970,3.2078,1615.9,1615.3,2.867]
[1745195745468,6.1156,1615.9,1615.3,2.867]
[1745195745675,4.44557,1616.1,1615.4,44.0078]
[1745195745870,9.5278,1616.2,1615.5,2.867]
[1745195745871,6.1156,1616.0,1615.5,2.867]
[1745195746172,1.23787,1616.0,1615.5,5.907]
[1745195746366,3.2078,1616.1,1615.5,7.14522]
[1745195746571,3.2078,1616.1,1615.6,7.32839]
[1745195746769,4.44541,1616.3,1615.7,2.867]
[1745195747073,94.315,1616.6,1615.7,2.867]
[1745195747074,9.8278,1616.9,1616.0,3.2078]
[1745195747370,3.2078,1616.7,1616.1,5.907]
[1745195747673,1.23722,1616.9,1616.2,4.44545]
[1745195747866,3.2078,1617.0,1616.3,5.9283]
[1745195748172,3.2078,1616.5,1616.3,2.9813]
[1745195748469,3.2078,1616.5,1616.1,3.04]
[1745195748470,1.24463796,1616.3,1616.1,3.04]
[1745195748775,3.2078,1616.5,1616.1,3.03300204]
[1745195748967,2.9574,1616.4,1615.8,6.1891]
[1745195749167,3.2078,1616.5,1615.8,6.1891]
[1745195749476,2.9574,1616.4,1615.8,6.1891]
[1745195749771,1.23764,1616.3,1615.8,6.1891]
[1745195749974,1.23773,1616.2,1615.9,2.9813]
[1745195750271,1.23784,1616.0,1615.9,2.9813]
[1745195750671,7.40302,1616.1,1615.9,2.9813]
[1745195750867,1.23784,1616.0,1615.9,2.9813]
[1745195751374,7.40301,1616.1,1615.9,2.9813]
[1745195751561,2.9574,1616.1,1615.9,2.9813]
[1745195751766,3.2078,1616.3,1615.9,2.9813]
[1745195751966,4.44559,1616.1,1615.9,2.9813]
[1745195752169,3.0926,1616.0,1615.6,6.0847]
[1745195752470,3.0926,1616.0,1615.6,9.1573]
[1745195752666,3.2078,1616.1,1615.9,40.8]
[1745195752867,7.5382,1616.1,1615.9,40.8]
[1745195753372,1.23784,1616.0,1615.9,40.8]
[1745195753674,2.9401,1616.0,1615.9,40.8]
[1745195753866,9.17794,1616.0,1615.9,40.8]
[1745195754372,7.9401,1616.0,1615.9,40.8]
[1745195754577,2.9401,1616.0,1615.9,40.8]
[1745195754870,9.5641,1616.0,1615.9,40.8]
[1745195755076,2.9401,1616.0,1615.9,40.8]
[1745195755269,10.80194,1616.0,1615.9,40.8]
[1745195755470,4.17794,1616.0,1615.9,40.8]
[1745195755777,14.5641,1616.0,1615.0,8.9598]
[1745195755981,3.2078,1615.8,1615.3,3.1701]
[1745195756280,3.2078,1615.4,1615.0,3.2078]
[1745195756476,9.8318,1615.6,1615.1,3.1701]
[1745195756679,3.2078,1615.6,1615.1,4.40859]
[1745195756871,9.5641,1615.7,1615.4,40.8]
[1745195757071,9.5641,1615.7,1615.5,3.0696]
[1745195758173,3.2078,1615.6,1615.4,40.8]
[1745195758367,3.2078,1615.6,1615.5,3.0696]
[1745195758572,9.8318,1615.8,1615.5,3.0696]
[1745195758780,11.06982,1615.8,1615.5,3.0696]
[1745195758977,2.8737,1615.7,1615.5,3.0696]
[1745195759180,3.2078,1615.6,1615.4,40.8]
[1745195759477,2.8737,1615.5,1615.4,40.8]
[1745195760377,4.11192,1615.5,1615.4,40.8]
[1745195760775,3.09583,1615.4,1614.7,3.2078]
[1745195760975,3.2078,1615.1,1614.3,12.969]
[1745195761282,1.23877,1614.8,1614.4,3.0582]
[1745195761579,3.2078,1614.9,1614.4,3.0582]
[1745195761879,6.625,1615.2,1614.6,1.23884]
[1745195762182,1.23839,1615.3,1614.7,10.55491]
[1745195762379,3.2078,1615.2,1614.7,9.3161]
[1745195762586,4.358,1615.3,1614.7,9.3161]
[1745195762980,3.1196,1615.3,1614.7,9.3161]
[1745195763281,3.2078,1615.2,1614.7,6.1083]
[1745195763476,3.0481,1615.1,1614.7,6.1083]
[1745195763877,1.23871,1614.9,1614.7,6.1083]
[1745195764073,1.23882,1614.8,1614.5,44.0078]
[1745195764282,1.23891,1614.6,1614.5,40.8]
[1745195764776,4.28701,1614.6,1614.5,40.8]
[1745195764982,15.91401,1614.6,1614.5,40.8]
[1745195765176,17.77259,1614.6,1613.9,5.9997]
[1745195765371,3.2078,1614.5,1613.9,5.9997]
[1745195765576,3.2078,1614.8,1614.0,3.2078]
[1745195765771,3.2078,1614.6,1614.1,2.9227]
[1745195765979,1.23915,1614.3,1614.1,2.9227]
[1745195766180,4.44691,1614.4,1614.2,40.8]
[1745195766482,2.9192,1614.3,1614.2,40.8]
[1745195766679,6.628,1614.5,1614.2,40.8]
[1745195766871,3.2078,1614.6,1614.3,2.9227]
[1745195767077,3.2078,1614.6,1614.2,40.8]
[1745195767276,1.23915,1614.3,1614.2,40.8]
[1745195767878,4.15835,1614.3,1614.2,40.8]
[1745195768276,9.15835,1614.3,1614.2,40.8]
[1745195769088,9.15835,1614.3,1613.7,2.9227]
[1745195769089,7.9192,1614.3,1613.7,2.9227]
[1745195769282,1.23963,1613.7,1613.5,2.9297]
[1745195769486,3.2078,1613.9,1613.4,3.0528]
[1745195769487,1.23957,1613.8,1613.4,3.0528]
[1745195769683,3.0898,1613.8,1613.4,3.0528]
[1745195769885,1.23963,1613.7,1613.4,3.0528]
[1745195770083,1.23963,1613.7,1613.6,40.8]
[1745195770290,4.44743,1613.7,1613.6,40.8]
[1745195771384,3.2078,1613.7,1613.6,40.8]
[1745195771581,4.44741,1613.7,1613.6,40.8]
[1745195771887,3.2078,1613.7,1613.6,40.8]
[1745195772183,4.44741,1613.7,1613.6,40.8]
[1745195772391,7.50011,1613.7,1613.6,40.8]
[1745195773086,12.50011,1613.7,1613.6,40.8]
[1745195774388,12.50011,1613.7,1613.5,0.0145]
[1745195774389,1.23968,1613.6,1613.5,0.0145]
[1745195774592,1.24014,1613.0,1612.6,5.8251]
[1745195774884,1.24015,1613.0,1612.7,3.0292]
[1745195775090,3.2078,1613.0,1612.7,3.0292]
[1745195775391,4.44767,1613.4,1612.8,40.8]
[1745195775590,3.2078,1613.2,1612.9,3.1659]
[1745195775887,1.24022,1612.9,1612.8,40.8]
[1745195776292,4.31132,1612.9,1612.8,40.8]
[1745195777193,1.24022,1612.9,1612.8,40.8]
[1745195777394,4.31132,1612.9,1612.8,40.8]
[1745195777594,3.0711,1612.9,1612.8,40.8]
[1745195777792,3.0711,1612.9,1612.8,43.9659]
[1745195778996,3.1526,1613.5,1612.8,48.9659]
[1745195778997,3.2078,1613.2,1612.8,48.9659]
[1745195779187,10.89706,1613.3,1612.9,3.0994]
[1745195779893,1.24,1613.2,1612.9,3.0994]
[1745195780096,1.24,1613.2,1612.9,5.3634]
[1745195780293,1.23999,1613.2,1612.9,5.3634]
[1745195780495,1.24007,1613.1,1612.9,5.3634]
[1745195780798,4.38015,1613.2,1612.9,5.3634]
[1745195780998,1.24014,1613.1,1612.9,5.3634]
[1745195781198,1.24014,1613.0,1612.9,5.3634]
[1745195781396,1.24014,1613.0,1612.9,2.264]
[1745195781597,4.44794,1613.0,1612.9,2.264]
[1745195782201,0.0146,1613.1,1612.8,43.9371]
[1745195782496,1.24022,1612.9,1612.8,40.8]
[1745195783098,6.5326,1613.1,1612.6,3.1371]
[1745195783402,1.24037,1612.7,1612.6,3.1371]
[1745195783592,6.30859,1612.8,1612.4,2.9854]
[1745195783792,1.24059,1612.5,1612.3,3.1371]
[1745195783993,1.24059,1612.5,1612.4,40.8]
[1745195784203,1.24053,1612.5,1612.4,40.8]
[1745195785002,9.34853,1612.5,1612.4,40.8]
[1745195785497,9.34853,1612.5,1611.8,3.2078]
[1745195785498,1.24097,1612.0,1611.5,5.9727]
[1745195785702,4.34904,1611.9,1611.6,2.9325]
[1745195785894,3.108,1611.9,1611.6,2.9325]
[1745195786195,3.2078,1611.8,1611.5,2.264]
[1745195786404,1.24109,1611.8,1611.5,2.264]
[1745195786603,1.24109,1611.8,1611.7,40.8]
[1745195786895,4.34909,1611.8,1611.7,40.8]
[1745195787897,3.108,1611.8,1611.7,40.8]
[1745195788100,3.10179,1612.3,1611.7,40.8]
[1745195788101,3.10123,1612.6,1611.7,45.8]
[1745195788299,1.24094,1612.0,1611.8,2.9103]
[1745195788496,6.3253,1611.9,1611.7,40.8]
[1745195788999,1.24107,1611.8,1611.7,40.8]
[1745195789194,4.35857,1611.8,1611.7,40.8]
[1745195789599,3.1175,1611.8,1611.7,40.8]
[1745195789803,4.35857,1611.8,1611.7,40.8]
[1745195790103,3.1175,1611.8,1611.7,40.8]
[1745195790609,4.35857,1611.8,1611.7,40.8]
[1745195791000,1.2413,1611.5,1611.4,2.264]
[1745195791199,9.7298,1611.5,1610.9,2.892]
[1745195791499,4.38721,1611.4,1610.9,2.892]
[1745195791695,1.24149,1611.3,1610.9,2.892]
[1745195791901,1.24143,1611.4,1611.0,40.8]
[1745195792101,1.24143,1611.4,1611.1,2.892]
[1745195792301,3.1458,1611.4,1611.1,2.892]
[1745195792711,4.38723,1611.4,1611.1,2.892]
[1745195792908,3.2078,1611.5,1611.1,7.892]
[1745195793107,1.256,1611.4,1611.1,2.892]
[1745195793313,1.24145,1611.3,1611.2,2.9223]
[1745195793608,0.0146,1611.4,1611.2,2.9223]
[1745195793812,0.0146,1611.4,1611.2,7.9223]
[1745195794005,0.0146,1611.4,1611.2,11.1301]
[1745195794205,0.0146,1611.4,1611.2,13.3941]
[1745195794500,1.24145,1611.3,1611.2,8.3941]
[1745195794705,1.24145,1611.3,1611.2,5.1863]
[1745195795109,1.24145,1611.3,1611.2,10.1863]
[1745195795306,1.24145,1611.3,1611.2,5.1863]
[1745195795512,4.44925,1611.3,1611.2,5.1863]
[1745195795707,1.24145,1611.3,1611.2,5.1863]
[1745195796807,4.44925,1611.3,1611.2,0.98716]
[1745195797517,4.20354,1611.4,1611.2,0.98716]
[1745195797702,0.0146,1611.4,1611.3,2.9814]
[1745195798415,1.24086,1612.1,1611.3,15.49081]
[1745195798711,3.2078,1612.2,1611.7,3.2078]
[1745195798913,1.24099,1611.9,1611.8,40.8]
[1745195799107,7.50899,1611.9,1611.8,40.8]
[1745195799413,12.50899,1611.9,1611.8,40.8]
[1745195799600,1.2411,1611.8,1611.4,2.948]
[1745195799806,6.6507,1611.8,1611.0,3.2078]
[1745195800104,1.24138,1611.4,1611.0,3.2078]
[1745195800303,1.24135,1611.5,1611.0,3.2078]
[1745195800503,1.24135,1611.5,1611.1,40.8]
[1745195800705,1.24138,1611.4,1611.1,40.8]
[1745195801014,3.2078,1611.5,1611.1,40.8]
[1745195801210,1.24153,1611.2,1611.1,40.8]
[1745195802214,1.24161,1611.1,1611.0,2.264]
[1745195802421,10.71741,1611.1,1611.0,2.264]
[1745195802610,3.2078,1611.6,1611.0,7.264]
[1745195802916,1.2414,1611.4,1611.1,3.4368]
[1745195803116,1.2414,1611.4,1611.2,40.8]
[1745195803416,6.268,1611.7,1611.2,40.8]
[1745195803716,1.24145,1611.3,1611.2,40.8]
[1745195804107,1.24145,1611.3,1611.2,43.064]
[1745195804302,10.92315,1611.3,1611.2,0.80317]
[1745195805303,1.24191,1610.7,1610.6,3.2078]
[1745195805609,1.24207,1610.5,1610.4,8.8853]
[1745195805813,1.24207,1610.5,1610.4,46.4775]
[1745195806201,4.44987,1610.5,1610.4,43.064]
[1745195806412,1.24207,1610.5,1610.4,43.064]
[1745195807110,3.2078,1610.9,1610.4,51.2718]
[1745195807314,3.2078,1610.9,1610.5,3.4135]
[1745195807514,1.24199,1610.6,1610.5,3.4135]
[1745195808217,7.76669,1610.6,1610.5,2.264]
[1745195808421,7.76669,1610.6,1610.5,0.45451]
[1745195808918,1.2423,1610.2,1610.1,6.3582]
[1745195809118,1.24245,1610.0,1609.9,3.2078]
[1745195809318,9.58259,1610.4,1609.7,16.4927]
[1745195809513,6.31356,1610.2,1609.5,3.2078]
[1745195809716,1.2425,1610.0,1609.7,3.2078]
[1745195809906,1.2425,1610.0,1609.8,40.8]
[1745195810312,1.24253,1609.9,1609.8,45.8]
[1745195810515,1.24249,1610.0,1609.8,40.8]
[1745195810816,1.24241,1610.1,1609.9,3.2078]
[1745195811019,1.24241,1610.1,1609.9,6.722]
[1745195811215,1.24245,1610.0,1609.9,13.986]
[1745195811418,1.24245,1610.0,1609.9,49.786]
[1745195811618,1.24245,1610.0,1609.9,54.786]
[1745195811921,9.37585,1610.7,1609.9,61.85417328]
[1745195812120,1.24222,1610.3,1610.2,3.2078]
[1745195812517,1.24238,1610.1,1610.0,3.1793]
[1745195813017,1.24238,1610.1,1610.0,8.1793]
[1745195813220,1.24238,1610.1,1610.0,13.6511]
[1745195813418,1.24236,1610.2,1610.0,13.6511]
[1745195813716,1.24226,1610.3,1610.0,8.6511]
[1745195813921,3.2078,1610.6,1610.0,5.4718]
[1745195814122,1.24234,1610.2,1610.0,5.4718]
[1745195814420,1.24234,1610.2,1610.1,3.1793]
[1745195814618,1.24228,1610.3,1610.1,3.1793]
[1745195814821,12.5837,1610.7,1610.1,3.1793]
[1745195815017,1.24222,1610.3,1610.2,3.2078]
[1745195816027,6.6587,1610.9,1610.2,9.00727047]
[1745195816324,3.267,1610.8,1610.4,3.2078]
[1745195816626,1.24207,1610.5,1610.4,3.2078]
[1745195816820,4.50887,1610.8,1610.4,4.00726732]
[1745195817022,3.267,1611.0,1610.5,0.79931598]
[1745195817223,3.267,1611.0,1610.6,4.00717703]
[1745195817413,1.24199,1610.6,1610.5,3.4424]
[1745195817619,1.24207,1610.5,1610.4,43.064]
[1745195817819,4.62467,1610.5,1610.4,43.064]
[1745195818420,3.3826,1610.5,1610.4,43.064]
[1745195818625,1.24197,1610.7,1610.4,43.064]
[1745195818826,4.62448,1610.8,1610.4,43.064]
[1745195819028,3.3826,1610.8,1610.4,43.064]
[1745195819225,3.3826,1610.8,1610.5,3.2078]
[1745195819427,1.24173,1611.0,1610.7,3.2078]
[1745195819632,1.24177,1610.9,1610.7,3.2078]
[1745195819821,1.24173,1611.0,1610.7,3.2078]
[1745195820128,3.3826,1611.1,1610.7,5.4718]
[1745195820420,3.3826,1611.1,1610.9,3.2078]
[1745195820627,3.3826,1611.1,1610.7,5.4718]
[1745195820832,9.4798,1611.4,1610.9,3.2078]
[1745195820833,1.24152,1611.3,1610.9,3.2078]
[1745195821021,1.24168,1611.0,1610.9,3.2078]
[1745195821325,1.24179,1610.9,1610.7,5.4718]
[1745195821535,3.2637,1611.2,1610.7,5.4718]
[1745195821827,1.24176,1610.9,1610.7,5.4718]
[1745195822032,1.24184,1610.8,1610.7,2.264]
[1745195822230,1.24161,1611.1,1610.7,5.4718]
[1745195822429,1.24164,1611.1,1610.7,5.4718]
[1745195822723,3.2637,1611.2,1610.8,0.80006511]
[1745195822925,3.2078,1611.1,1610.7,5.4718]
[1745195823131,1.24199,1610.6,1610.5,3.2078]
[1745195823937,1.24198,1610.7,1610.5,3.2078]
[1745195824231,4.65469,1610.6,1610.5,2.264]
[1745195824435,9.65469,1610.6,1610.5,2.264]
[1745195824617,15.92569,1610.6,1610.5,2.264]
[1745195825626,19.33939,1610.6,1610.5,2.264]
[1745195825833,14.33939,1610.6,1610.5,2.264]
[1745195826029,19.33939,1610.6,1610.5,2.264]
[1745195826828,1.24207,1610.5,1610.4,40.8]
[1745195827127,1.24263,1609.8,1609.5,2.264]
[1745195827327,3.4673,1609.7,1609.6,0.80242286]
[1745195827528,3.4673,1609.7,1609.5,2.264]
[1745195827734,1.24276,1609.6,1609.5,2.264]
[1745195827933,1.24276,1609.6,1609.5,43.064]
[1745195828259,3.10711,1609.5,1608.9,7.80950067]
[1745195828421,1.24323,1609.0,1608.9,7.80950067]
[1745195828622,4.45101,1609.1,1608.9,7.80950067]
[1745195828832,3.2078,1609.9,1609.0,3.2078]
[1745195829134,3.2078,1609.7,1609.2,3.2078]
[1745195829428,3.4673,1609.6,1609.3,40.8]
[1745195829637,1.24286,1609.5,1609.3,40.8]
[1745195829825,4.65872,1609.4,1609.3,40.8]
[1745195830026,3.4158,1609.4,1609.3,40.8]
[1745195830230,3.2078,1609.8,1609.3,49.0078]
[1745195830436,1.24275,1609.7,1609.3,44.0078]
[1745195830624,6.6236,1609.8,1609.3,50.2028]
[1745195830625,3.4158,1609.8,1609.3,50.2028]
[1745195830830,1.24272,1609.7,1609.3,50.2028]
[1745195831025,3.4158,1609.6,1609.3,50.2028]
[1745195831227,3.2078,1609.5,1609.3,40.8]
[1745195831432,4.65872,1609.4,1609.3,40.8]
[1745195831930,3.4158,1609.4,1609.3,40.8]
[1745195832135,4.65872,1609.4,1609.3,40.8]
[1745195832733,13.10152,1609.4,1609.3,40.8]
[1745195832939,8.10152,1609.4,1609.3,40.8]
[1745195833135,1.24281,1609.6,1609.3,45.8]
[1745195833333,1.24271,1609.7,1609.3,47.2247]
[1745195833539,3.4755,1609.7,1609.4,3.2169]
[1745195833731,9.4038,1610.1,1609.4,3.2169]
[1745195834036,1.24273,1609.7,1609.4,3.2169]
[1745195834237,3.4755,1609.6,1609.4,5.4809]
[1745195834639,9.4038,1610.1,1609.5,3.2078]
[1745195834836,1.24264,1609.8,1609.6,3.2169]
[1745195835233,3.4755,1610.0,1609.7,3.2078]
[1745195835439,3.2078,1610.5,1609.9,3.2078]
[1745195835748,1.2423,1610.3,1610.0,3.3163]
[1745195835942,6.7273,1610.5,1610.0,3.3163]
[1745195835943,6.7273,1610.5,1610.1,40.8]
[1745195836138,1.2423,1610.2,1610.1,40.8]
[1745195836533,1.24227,1610.3,1610.1,40.8]
[1745195836834,3.5195,1610.2,1610.1,40.8]
[1745195837040,1.2421,1610.5,1610.2,3.3163]
[1745195837238,1.2423,1610.2,1610.1,40.8]
[1745195838240,4.7618,1610.2,1610.1,40.8]
[1745195840742,1.24238,1610.1,1610.0,2.264]
[1745195841037,18.9247,1610.1,1608.9,6.7362]
[1745195841245,1.24341,1608.8,1608.6,11.27330067]
[1745195841646,4.45121,1608.8,1608.6,11.27330067]
[1745195841842,1.24341,1608.8,1608.7,40.8]
[1745195842039,1.24336,1608.9,1608.7,40.8]
[1745195842234,1.24338,1608.8,1608.7,43.064]
[1745195842436,1.24335,1608.9,1608.7,43.064]
[1745195842639,3.2078,1609.0,1608.7,43.064]
[1745195842841,1.24338,1608.8,1608.7,43.064]
[1745195843442,4.45107,1609.0,1608.7,43.064]
[1745195843647,4.45107,1609.0,1608.7,46.5965]
[1745195843648,1.24325,1609.0,1608.7,46.5965]
[1745195843843,7.44017,1609.1,1608.7,46.5965]
[1745195844043,7.44017,1609.1,1608.8,3.2078]
[1745195844044,6.197,1609.1,1608.8,3.2078]
[1745195844251,3.5369,1609.2,1608.9,3.5325]
[1745195844445,7.44095,1609.4,1608.9,3.5325]
[1745195844641,3.5369,1609.3,1609.0,3.2078]
[1745195844849,1.24282,1609.6,1609.1,3.2581]
[1745195845049,3.2428,1609.5,1609.1,3.2581]
[1745195845349,4.48566,1609.5,1609.2,3.2078]
[1745195845537,3.2078,1609.8,1609.3,3.2581]
[1745195845538,1.24282,1609.6,1609.3,3.2581]
[1745195845943,4.48553,1609.7,1609.3,3.2581]
[1745195846446,3.2428,1609.7,1609.3,3.2581]
[1745195846641,4.48554,1609.7,1609.3,3.2581]
[1745195847148,1.24274,1609.7,1609.4,3.2078]
[1745195847346,1.24276,1609.6,1609.5,3.2581]
[1745195847745,1.24284,1609.5,1609.4,44.0078]
[1745195848055,1.24284,1609.5,1609.4,43.064]
[1745195848349,6.24284,1609.5,1609.4,43.064]
[1745195848547,9.51994,1609.5,1609.4,43.064]
[1745195848944,10.71794,1609.5,1609.4,43.064]
[1745195849145,15.71794,1609.5,1609.4,43.064]
[1745195850050,10.71794,1609.5,1609.4,43.064]
[1745195851147,3.2078,1609.6,1609.4,43.064]
[1745195851345,1.24277,1609.6,1609.4,43.064]
[1745195852053,1.24281,1609.6,1609.4,43.064]
[1745195852246,3.4629,1609.7,1609.4,43.064]
[1745195852551,3.4629,1609.7,1609.5,3.236]
[1745195852746,15.81001343,1609.9,1609.5,6.4438]
[1745195853146,15.81001343,1609.9,1609.5,8.7078]
[1745195853147,1.24273,1609.7,1609.5,8.7078]
[1745195853551,1.24276,1609.6,1609.5,2.264]
[1745195853754,4.70566,1609.6,1609.5,2.264]
[1745195854455,9.70566,1609.6,1609.5,2.264]
[1745195855455,4.70566,1609.6,1609.5,2.264]
[1745195856047,4.70566,1609.6,1609.5,5.825]
[1745195857158,3.4629,1609.6,1609.5,5.825]
[1745195857361,3.2078,1609.7,1609.5,5.825]
[1745195857555,1.24276,1609.6,1609.5,5.825]
[1745195857859,4.49166,1609.6,1609.5,2.264]
[1745195858746,4.49166,1609.6,1609.5,5.7375]
[1745195859453,4.49166,1609.6,1609.5,2.264]
[1745195860057,4.49166,1609.6,1609.5,5.7375]
[1745195860653,3.2489,1609.6,1609.5,5.7375]
[1745195860855,6.14811343,1610.1,1609.5,11.98032]
[1745195861157,6.14811343,1610.1,1609.9,3.2078]
[1745195861361,7.39049343,1610.1,1610.0,3.4619]
[1745195861554,7.39049343,1610.1,1609.5,9.1192]
[1745195861555,12.30711343,1610.1,1609.5,9.1192]